bitfinex/quotes_BTCUSD_20240712
["timestamp","ask_amount","ask_price","bid_price","bid_amount"]
[1720811146892,1.21793234,58436.0,58435.0,0.1001]
[1720811147095,1.39120881,58436.0,58435.0,0.1001]
[1720811147521,1.21759907,58436.0,58435.0,0.1001]
[1720811148178,1.197889,58436.0,58435.0,0.1001]
[1720811148396,1.21764496,58436.0,58435.0,0.1001]
[1720811148882,1.21764528,58436.0,58435.0,0.1001]
[1720811149331,1.39092057,58436.0,58435.0,0.1001]
[1720811149995,1.39092057,58436.0,58435.0,0.2822]
[1720811150219,1.39092057,58436.0,58435.0,0.1001]
[1720811150430,1.39092057,58436.0,58435.0,0.11029864]
[1720811151478,1.39092057,58436.0,58435.0,0.11229864]
[1720811151919,1.21764528,58436.0,58435.0,0.29439864]
[1720811152414,1.39142099,58436.0,58435.0,0.11229864]
[1720811152803,1.3081457,58436.0,58435.0,0.11229864]
[1720811153018,1.3081457,58436.0,58435.0,0.1021]
[1720811153224,1.48142099,58436.0,58435.0,0.1021]
[1720811153465,1.48142099,58436.0,58435.0,0.2842]
[1720811153689,1.48142099,58436.0,58435.0,0.2882]
[1720811153898,1.48142099,58436.0,58435.0,0.29839864]
[1720811154361,1.3081457,58436.0,58435.0,0.29839864]
[1720811154576,1.48142099,58436.0,58435.0,0.29839864]
[1720811154800,1.3081457,58436.0,58435.0,0.2882]
[1720811155228,1.3081457,58436.0,58435.0,0.3267]
[1720811155466,1.48142099,58436.0,58435.0,0.3267]
[1720811155684,1.48144173,58436.0,58435.0,0.33689864]
[1720811155902,1.48144086,58436.0,58435.0,0.33689864]
[1720811156132,1.287889,58436.0,58435.0,0.33689864]
[1720811156347,1.48144054,58436.0,58435.0,0.3267]
[1720811156571,1.30816612,58436.0,58435.0,0.3267]
[1720811156780,1.30816612,58436.0,58435.0,0.29839864]
[1720811156993,1.30816612,58436.0,58435.0,0.2882]
[1720811157175,1.30816612,58436.0,58435.0,0.29839864]
[1720811157415,1.30816612,58436.0,58435.0,0.33689864]
[1720811157631,1.22829081,58436.0,58435.0,0.48299864]
[1720811158268,0.86575969,58436.0,58435.0,0.48299864]
[1720811158492,0.02026354,58436.0,58435.0,0.4728]
[1720811158797,0.02026354,58436.0,58435.0,0.98619]
[1720811158886,0.02026354,58436.0,58435.0,0.99638864]
[1720811159129,0.171119,58439.0,58438.0,0.2206]
[1720811159345,0.26003013,58439.0,58438.0,0.2206]
[1720811159554,0.53360801,58439.0,58438.0,0.1922899]
[1720811159978,0.53360801,58439.0,58438.0,0.2307899]
[1720811160199,0.87584501,58439.0,58438.0,0.0101899]
[1720811160619,0.513381,58436.0,58435.0,0.1061]
[1720811160843,0.62363301,58436.0,58435.0,0.1061]
[1720811161057,1.13914801,58436.0,58435.0,0.1001]
[1720811161482,0.96588701,58436.0,58435.0,0.1001]
[1720811161921,0.87588701,58436.0,58435.0,0.3207]
[1720811162182,0.87588701,58436.0,58435.0,0.3227]
[1720811162411,0.02025201,58436.0,58435.0,0.84628864]
[1720811162635,0.02025201,58436.0,58435.0,1.33134864]
[1720811162850,0.0206661,58437.0,58436.0,0.342254]
[1720811163112,0.02066606,58437.0,58436.0,0.513381]
[1720811163326,0.02066606,58437.0,58436.0,0.52357673]
[1720811163548,0.02066606,58437.0,58436.0,1.27283073]
[1720811163771,0.15399647,58443.0,58441.0,0.706425]
[1720811164018,0.16228647,58444.0,58443.0,0.391706]
[1720811164236,0.0286189,58444.0,58443.0,0.391706]
[1720811164450,0.00829,58444.0,58443.0,0.733919]
[1720811164660,0.02850522,58444.0,58443.0,0.733919]
[1720811164891,0.02850592,58444.0,58443.0,0.74409433]
[1720811165138,0.00829,58444.0,58443.0,0.74409433]
[1720811165390,0.00829,58444.0,58443.0,0.75409433]
[1720811165798,0.02863257,58444.0,58443.0,0.74409433]
[1720811166010,0.00829,58444.0,58443.0,0.75809433]
[1720811166454,0.13654175,58444.0,58443.0,0.77209433]
[1720811166887,0.00829,58444.0,58443.0,0.77209433]
[1720811167315,0.13650623,58444.0,58443.0,0.77209433]
[1720811167532,0.00829,58444.0,58443.0,0.77209433]
[1720811167750,0.1365054,58444.0,58443.0,0.75809433]
[1720811168152,0.1365054,58444.0,58443.0,0.77209433]
[1720811168153,0.00829,58444.0,58443.0,0.77209433]
[1720811168372,0.13650658,58444.0,58443.0,0.75809433]
[1720811168808,0.13650658,58444.0,58443.0,0.77209433]
[1720811169289,0.00829,58444.0,58443.0,0.77209433]
[1720811169511,0.02861406,58444.0,58443.0,0.25877533]
[1720811170393,0.02861406,58444.0,58443.0,0.03817533]
[1720811170394,0.88413106,58444.0,58443.0,0.03817533]
[1720811170645,1.22633806,58444.0,58443.0,0.03817533]
[1720811171084,1.22633806,58444.0,58443.0,0.028]
[1720811171312,1.206014,58444.0,58443.0,0.014]
[1720811173301,1.02848679,58436.0,58435.0,0.2822]
[1720811173512,1.02848679,58436.0,58435.0,0.2882]
[1720811173513,0.87463833,58436.0,58435.0,0.2882]
[1720811173736,0.87463833,58436.0,58435.0,0.29839864]
[1720811173951,0.87463833,58436.0,58435.0,0.33689864]
[1720811174226,0.87463833,58436.0,58435.0,0.29839864]
[1720811174456,0.87463833,58436.0,58435.0,0.33689864]
[1720811174677,0.87411003,58436.0,58435.0,0.33689864]
[1720811175333,0.87410949,58436.0,58435.0,0.33089864]
[1720811175553,0.87410949,58436.0,58435.0,0.34489864]
[1720811175968,0.01847449,58436.0,58435.0,0.41819864]
[1720811176190,0.01847449,58436.0,58435.0,0.48479864]
[1720811176401,0.01847449,58436.0,58435.0,0.49279864]
[1720811176625,0.12819861,58437.0,58435.0,0.49279864]
[1720811176854,0.12819861,58437.0,58436.0,0.2206]
[1720811177115,0.1621377,58444.0,58442.0,0.2206]
[1720811177374,0.53173947,58443.0,58442.0,0.1821]
[1720811177603,1.02780017,58443.0,58442.0,0.1821]
[1720811177816,1.02741006,58443.0,58442.0,0.1821]
[1720811178109,0.87356452,58443.0,58442.0,0.1821]
[1720811178324,0.87356452,58443.0,58442.0,0.2206]
[1720811178542,1.02739494,58443.0,58442.0,0.2206]
[1720811178985,0.87356452,58443.0,58442.0,0.2246]
[1720811179418,0.87356452,58443.0,58442.0,0.2306]
[1720811179682,0.18913852,58443.0,58442.0,0.2306]
[1720811180400,0.97812143,58443.0,58442.0,0.01]
[1720811181306,1.27617752,58443.0,58442.0,0.01]
[1720811181520,1.27647782,58443.0,58442.0,0.01]
[1720811182009,1.35797782,58443.0,58442.0,0.01]
[1720811182247,1.37647782,58443.0,58442.0,0.01]
[1720811182464,1.31607782,58443.0,58442.0,0.01]
[1720811183114,1.31607782,58443.0,58442.0,0.004]
[1720811183552,1.39757782,58443.0,58442.0,0.007]
[1720811183967,1.39757782,58443.0,58442.0,0.003]
[1720811184395,1.57062352,58443.0,58442.0,0.003]
[1720811184773,1.5700323,58443.0,58442.0,0.003]
[1720811184987,0.855635,58436.0,58435.0,0.101013]
[1720811185157,0.87329837,58436.0,58435.0,0.101013]
[1720811185357,0.87329837,58436.0,58435.0,0.11121164]
[1720811185571,0.87329837,58436.0,58435.0,0.101013]
[1720811185776,0.87329837,58436.0,58435.0,0.321613]
[1720811186225,1.21555237,58436.0,58435.0,0.11121164]
[1720811186474,1.21555237,58436.0,58435.0,0.11921164]
[1720811186698,1.21555237,58436.0,58435.0,0.11121164]
[1720811187540,1.21555237,58436.0,58435.0,0.101013]
[1720811187756,1.21555237,58436.0,58435.0,0.11721164]
[1720811187968,1.21582245,58436.0,58435.0,0.11721164]
[1720811188179,1.21582245,58436.0,58435.0,0.101013]
[1720811188593,1.21582245,58436.0,58435.0,0.109013]
[1720811188800,1.21582245,58436.0,58435.0,0.119013]
[1720811188995,1.21582245,58436.0,58435.0,0.109013]
[1720811189276,1.21582245,58436.0,58435.0,0.119013]
[1720811189728,1.21582245,58436.0,58398.0,0.000913]
[1720811189729,0.1,58399.0,58398.0,0.000913]
[1720811189949,0.1,58389.0,58377.0,0.009108]
[1720811190168,0.856485,58378.0,58377.0,0.009108]
[1720811190388,1.0298007,58378.0,58377.0,0.009108]
[1720811190637,0.54262366,58378.0,58377.0,0.009108]
[1720811190888,0.88521766,58378.0,58377.0,0.009108]
[1720811191101,0.856485,58378.0,58377.0,0.009108]
[1720811191310,1.37621608,58378.0,58377.0,0.009108]
[1720811191533,1.42414735,58378.0,58377.0,0.009108]
[1720811191752,1.42414735,58378.0,58377.0,0.03473436]
[1720811191960,1.42404735,58378.0,58377.0,0.03473436]
[1720811192173,1.27745177,58378.0,58377.0,0.009108]
[1720811192398,1.27745177,58378.0,58377.0,0.03473436]
[1720811192399,1.20078259,58378.0,58377.0,0.03473436]
[1720811192605,1.20478259,58378.0,58377.0,0.03473436]
[1720811193023,1.198979,58378.0,58377.0,0.03473436]
[1720811193238,1.198979,58378.0,58377.0,0.009108]
[1720811193239,1.201979,58378.0,58377.0,0.009108]
[1720811193478,1.321979,58378.0,58377.0,0.009108]
[1720811193712,1.201979,58378.0,58377.0,0.009108]
[1720811193921,1.321979,58378.0,58377.0,0.009108]
[1720811194134,1.205979,58378.0,58377.0,0.009108]
[1720811194346,1.325979,58378.0,58377.0,0.009108]
[1720811194561,1.321979,58378.0,58377.0,0.009108]
[1720811194801,1.325979,58378.0,58377.0,0.009108]
[1720811195855,1.768573,58378.0,58377.0,0.009108]
[1720811196316,1.648573,58378.0,58377.0,0.009208]
[1720811196519,1.768573,58378.0,58377.0,0.009208]
[1720811196725,1.764573,58378.0,58377.0,0.009208]
[1720811197143,1.766573,58378.0,58377.0,0.009208]
[1720811197622,1.641573,58378.0,58377.0,0.009208]
[1720811197826,1.766573,58378.0,58377.0,0.009208]
[1720811198233,1.646573,58378.0,58377.0,0.009208]
[1720811198437,1.769573,58378.0,58377.0,0.009208]
[1720811198658,2.2824044,58378.0,58377.0,0.009208]
[1720811198870,2.2824044,58378.0,58376.0,0.009108]
[1720811198871,1.93607364,58377.0,58376.0,0.009108]
[1720811199108,2.38173717,58377.0,58376.0,0.009108]
[1720811199326,2.38354303,58377.0,58376.0,0.009108]
[1720811199551,2.82491967,58377.0,58376.0,0.009108]
[1720811199760,2.82491967,58377.0,58376.0,0.00859267]
[1720811199761,2.88485614,58377.0,58376.0,0.00859267]
[1720811200188,2.88485614,58377.0,58376.0,0.00807734]
[1720811200397,2.88485614,58377.0,58371.0,0.002]
[1720811200398,2.62142964,58373.0,58371.0,0.002]
[1720811200613,3.03134399,58373.0,58371.0,0.002]
[1720811200830,2.9480355,58373.0,58371.0,0.002]
[1720811201310,2.9480355,58373.0,58372.0,0.1519582]
[1720811201311,0.27126803,58373.0,58372.0,0.1519582]
[1720811201543,0.008,58377.0,58376.0,0.02562636]
[1720811201544,0.1823,58377.0,58376.0,0.02562636]
[1720811201778,0.1823,58377.0,58372.0,0.54828572]
[1720811201779,0.171309,58374.0,58373.0,0.02562636]
[1720811201994,0.0637,58390.0,58373.0,0.02562636]
[1720811201995,0.171285,58382.0,58381.0,0.01762636]
[1720811202247,0.12,58387.0,58378.0,0.01762636]
[1720811202454,0.513891,58378.0,58377.0,0.01762636]
[1720811203099,0.856485,58378.0,58377.0,0.01762636]
[1720811203313,0.856485,58378.0,58377.0,0.01772636]
[1720811203314,0.513891,58378.0,58377.0,0.01772636]
[1720811203530,0.513891,58378.0,58377.0,0.0001]
[1720811204203,0.513891,58378.0,58377.0,0.01772636]
[1720811204625,0.342565,58384.0,58383.0,0.01762636]
[1720811204863,0.1,58388.0,58387.0,0.01762636]
[1720811204864,0.613804,58388.0,58387.0,0.01762636]
[1720811205109,0.95634,58388.0,58387.0,0.1364]
[1720811206164,0.95634,58388.0,58387.0,0.15402636]
[1720811206799,0.95634,58388.0,58387.0,0.1364]
[1720811208072,0.95634,58388.0,58387.0,0.1374]
[1720811208746,0.95634,58388.0,58387.0,0.1375]
[1720811208747,1.0862267,58388.0,58387.0,0.1375]
[1720811208956,1.5487627,58388.0,58387.0,0.0011]
[1720811209417,1.8912987,58388.0,58387.0,0.0011]
[1720811209836,1.761412,58388.0,58387.0,0.0011]
[1720811210039,0.95634,58388.0,58387.0,0.01872636]
[1720811210299,0.95634,58388.0,58387.0,0.0011]
[1720811210507,1.298876,58388.0,58387.0,0.0001]
[1720811211370,1.302876,58388.0,58387.0,0.0001]
[1720811211798,1.298876,58388.0,58387.0,0.0001]
[1720811212221,1.298876,58388.0,58387.0,0.0011]
[1720811213283,1.42932478,58388.0,58387.0,0.0011]
[1720811213693,1.298876,58388.0,58387.0,0.0011]
[1720811214542,1.298876,58388.0,58387.0,0.002013]
[1720811214983,1.299706,58388.0,58387.0,0.002013]
[1720811215454,1.419706,58388.0,58387.0,0.002013]
[1720811216516,1.762242,58388.0,58387.0,0.002013]
[1720811216765,1.9324794,58388.0,58387.0,0.002013]
[1720811217450,1.9324794,58388.0,58387.0,0.001013]
[1720811218294,1.9354794,58388.0,58387.0,0.001013]
[1720811218708,2.3780154,58388.0,58387.0,0.001013]
[1720811218915,0.856545,58374.0,58373.0,0.0645]
[1720811219377,0.856545,58374.0,58373.0,0.08212636]
[1720811219801,0.51391,58376.0,58375.0,0.01762636]
[1720811220016,0.513909,58376.0,58375.0,0.01762636]
[1720811220241,0.513809,58376.0,58375.0,0.01762636]
[1720811220462,0.856415,58376.0,58375.0,0.01762636]
[1720811221103,0.172203,58376.0,58375.0,0.02962636]
[1720811221530,0.171203,58376.0,58375.0,0.0357202]
[1720811221736,0.513809,58376.0,58375.0,0.0357202]
[1720811222200,0.513809,58376.0,58375.0,0.0437202]
[1720811222201,0.001,58376.0,58375.0,0.0437202]
[1720811222426,0.0009,58376.0,58375.0,0.2150262]
[1720811223523,0.271295,58379.0,58378.0,0.01762636]
[1720811223738,0.1,58379.0,58378.0,0.67541736]
[1720811223950,0.1,58379.0,58378.0,1.2051682]
[1720811224182,0.00083,58388.0,58387.0,0.01662636]
[1720811224397,0.10083,58388.0,58387.0,0.33179736]
[1720811224621,0.00083,58388.0,58387.0,0.34980945]
[1720811225093,0.00083,58388.0,58387.0,0.16191209]
[1720811225537,0.00083,58388.0,58387.0,0.34880945]
[1720811225760,0.00083,58388.0,58387.0,1.03389345]
[1720811225977,0.00083,58388.0,58387.0,1.60325345]
[1720811226410,0.00083,58388.0,58387.0,1.5998281]
[1720811227086,0.00083,58388.0,58387.0,1.6138281]
[1720811227515,0.00083,58388.0,58387.0,1.5998281]
[1720811227749,0.00083,58388.0,58387.0,1.6138281]
[1720811229047,0.00083,58388.0,58387.0,1.51043545]
[1720811238700,0.00083,58388.0,58387.0,1.51053545]
[1720811240357,0.00083,58388.0,58387.0,0.70545145]
[1720811240571,0.00083,58388.0,58387.0,1.16799345]
[1720811240779,0.00083,58388.0,58387.0,1.04799345]
[1720811241635,0.00083,58388.0,58387.0,1.16799345]
[1720811242674,0.00083,58388.0,58387.0,1.16855145]
[1720811242884,0.00083,58388.0,58387.0,1.04855145]
[1720811245066,0.00083,58388.0,58387.0,1.16855145]
[1720811245766,0.00083,58388.0,58387.0,1.51109345]
[1720811246464,0.00083,58388.0,58387.0,1.51200645]
[1720811246896,0.00083,58388.0,58387.0,1.39200645]
[1720811246897,0.00037547,58388.0,58387.0,1.39200645]
[1720811247731,0.00037547,58388.0,58387.0,1.04946445]
[1720811248146,0.00037547,58388.0,58387.0,1.166892]
[1720811249181,0.00037547,58388.0,58387.0,1.286892]
[1720811249384,0.0516206,58388.0,58387.0,1.286892]
[1720811249595,0.00037547,58388.0,58387.0,1.286892]
[1720811250014,0.00037547,58388.0,58387.0,1.629434]
[1720811250435,0.00037547,58388.0,58387.0,1.39200645]
[1720811250654,0.00037547,58388.0,58387.0,1.51200645]
[1720811251561,0.00037547,58388.0,58387.0,1.71200645]
[1720811252732,0.00037547,58388.0,58387.0,2.05454845]
[1720811252972,0.00037547,58388.0,58387.0,1.85454845]
[1720811253688,0.00037547,58388.0,58387.0,2.15454845]
[1720811256389,0.00037547,58388.0,58387.0,2.18885845]
[1720811256861,0.00037547,58388.0,58387.0,1.98885845]
[1720811258741,0.00037547,58388.0,58387.0,1.97485845]
[1720811259003,0.00037547,58388.0,58387.0,1.98885845]
[1720811259703,0.00037547,58388.0,58387.0,1.51200645]
[1720811259931,0.00037547,58388.0,58387.0,1.54635645]
[1720811264023,0.00037547,58388.0,58387.0,1.53585645]
[1720811264504,0.00037547,58388.0,58387.0,1.52990648]
[1720811265900,0.00037547,58388.0,58387.0,0.55807248]
[1720811266150,0.03996395,58388.0,58387.0,0.21553048]
[1720811266383,0.04302748,58388.0,58387.0,0.04425948]
[1720811266647,0.04323155,58388.0,58387.0,0.05003043]
[1720811266892,0.04016802,58388.0,58387.0,0.22130143]
[1720811267134,0.04016802,58388.0,58387.0,0.56384343]
[1720811267364,0.04016802,58388.0,58387.0,0.05003043]
[1720811267603,0.89650802,58388.0,58387.0,0.03340407]
[1720811267870,0.97500802,58388.0,58387.0,0.015571]
[1720811268644,1.46435837,58388.0,58387.0,0.001571]
[1720811268877,1.47924402,58388.0,58387.0,0.015571]
[1720811269382,1.47924402,58388.0,58387.0,0.001571]
[1720811269865,1.48006764,58388.0,58387.0,0.001571]
[1720811270337,1.4800128,58388.0,58387.0,0.001571]
[1720811270571,1.1374768,58388.0,58387.0,0.01819736]
[1720811270805,1.0589768,58388.0,58387.0,0.01819736]
[1720811271047,0.1409368,58388.0,58387.0,0.18946836]
[1720811271317,0.1409368,58388.0,58387.0,0.03617164]
[1720811271617,0.0409368,58388.0,58387.0,0.03617164]
[1720811272320,0.0409368,58388.0,58387.0,0.01954528]
[1720811272321,1.41680967,58388.0,58387.0,0.01954528]
[1720811272562,1.41680967,58388.0,58387.0,0.001571]
[1720811272563,1.65107363,58388.0,58387.0,0.001571]
[1720811272788,1.8202488,58388.0,58387.0,0.001571]
[1720811273022,1.82007744,58388.0,58387.0,0.001571]
[1720811273253,1.47754144,58388.0,58387.0,0.001571]
[1720811273722,1.64516606,58388.0,58387.0,0.001571]
[1720811273948,1.47754144,58388.0,58387.0,0.001571]
[1720811274244,1.48822025,58388.0,58387.0,0.101571]
[1720811275662,1.48853786,58388.0,58387.0,0.101571]
[1720811276390,1.43715147,58388.0,58387.0,0.101571]
[1720811276651,1.66177281,58388.0,58387.0,0.101571]
[1720811276905,1.60853718,58388.0,58387.0,0.101571]
[1720811277161,1.59785837,58388.0,58387.0,0.101571]
[1720811277928,1.59785837,58388.0,58387.0,0.102571]
[1720811278175,2.060349,58388.0,58387.0,0.102571]
[1720811278432,2.060349,58388.0,58387.0,0.101571]
[1720811279812,2.0196421,58388.0,58387.0,0.101571]
[1720811280052,2.05959578,58388.0,58387.0,0.101571]
[1720811282440,2.05941741,58388.0,58387.0,0.101571]
[1720811282922,2.0196421,58388.0,58387.0,0.101571]
[1720811283163,2.0604174,58388.0,58387.0,0.101571]
[1720811283676,2.0594174,58388.0,58387.0,0.101571]
[1720811283916,1.51507202,58388.0,58387.0,0.101571]
[1720811284160,1.51507202,58388.0,58387.0,0.11819736]
[1720811284161,0.04315077,58388.0,58387.0,0.11819736]
[1720811284432,0.04315077,58388.0,58387.0,0.13617164]
[1720811284694,0.04315077,58388.0,58387.0,0.30744264]
[1720811284929,0.11522966,58388.0,58387.0,0.30744264]
[1720811285174,0.17130667,58388.0,58387.0,0.30744264]
[1720811285420,0.17105943,58388.0,58387.0,0.30744264]
[1720811285686,1.20225147,58388.0,58387.0,0.11954528]
[1720811285899,1.23878316,58388.0,58387.0,0.101571]
[1720811286153,1.38549671,58388.0,58387.0,0.102571]
[1720811286606,1.38549671,58388.0,58387.0,0.101571]
[1720811287015,1.38549671,58388.0,58387.0,0.104571]
[1720811287256,1.53378316,58388.0,58387.0,0.104571]
[1720811287517,1.41378316,58388.0,58387.0,0.104571]
[1720811287755,1.58679957,58388.0,58387.0,0.104571]
[1720811289013,2.04933557,58388.0,58387.0,0.101571]
[1720811289246,1.87631916,58388.0,58387.0,0.101571]
[1720811289986,1.87731916,58388.0,58387.0,0.101571]
[1720811290498,2.7339662,58388.0,58387.0,0.101571]
[1720811290734,2.7349662,58388.0,58387.0,0.101571]
[1720811292463,2.83503352,58388.0,58387.0,0.07540543]
[1720811292711,2.83503352,58388.0,58387.0,0.05541236]
[1720811292966,2.85828908,58388.0,58387.0,0.05541236]
[1720811293244,2.89990312,58388.0,58387.0,0.05541236]
[1720811293690,3.44403912,58388.0,58387.0,0.05541236]
[1720811293909,3.44703912,58388.0,58387.0,0.05641236]
[1720811294125,2.46804764,58384.0,58383.0,0.004811]
[1720811294340,2.46804764,58384.0,58371.0,0.002]
[1720811294341,0.580445,58372.0,58371.0,0.002]
[1720811294627,0.65355904,58372.0,58371.0,0.002]
[1720811294873,1.68144904,58372.0,58371.0,0.002]
[1720811295517,1.6817359,58372.0,58371.0,0.002]
[1720811295728,1.6816359,58372.0,58371.0,0.002]
[1720811296140,1.8016359,58372.0,58371.0,0.002]
[1720811296355,1.9718733,58372.0,58371.0,0.002]
[1720811296795,1.8016359,58372.0,58371.0,0.002]
[1720811297016,1.6815359,58372.0,58371.0,0.002]
[1720811297291,1.6814359,58372.0,58371.0,0.002]
[1720811298035,1.6814359,58372.0,58371.0,0.01862636]
[1720811298036,1.3388059,58372.0,58371.0,0.01862636]
[1720811298266,0.9961759,58372.0,58371.0,0.15942636]
[1720811298504,1.12408619,58372.0,58371.0,0.175369]
[1720811298749,0.9961759,58372.0,58371.0,0.15942636]
[1720811298993,1.09835412,58372.0,58371.0,0.15942636]
[1720811299230,1.09835412,58372.0,58371.0,0.17750964]
[1720811299429,0.99602901,58372.0,58371.0,0.17750964]
[1720811299711,0.99557436,58372.0,58371.0,0.17750964]
[1720811299967,1.09789947,58372.0,58371.0,0.09678328]
[1720811300446,1.09789947,58372.0,58371.0,0.0788]
[1720811300691,1.12348074,58372.0,58371.0,0.0021]
[1720811300941,1.11557436,58372.0,58371.0,0.0021]
[1720811301167,1.45820436,58372.0,58371.0,0.0021]
[1720811301593,1.61937356,58372.0,58371.0,0.0021]
[1720811302293,1.61895525,58372.0,58371.0,0.0021]
[1720811302513,1.80041605,58372.0,58371.0,0.0021]
[1720811303611,1.86051605,58372.0,58371.0,0.0014]
[1720811304499,1.86051605,58372.0,58371.0,0.0007]
[1720811304997,2.1282484,58372.0,58371.0,0.0007]
[1720811305237,2.31162204,58372.0,58371.0,0.0007]
[1720811305485,2.12728846,58372.0,58371.0,0.0007]
[1720811305715,2.46991846,58372.0,58371.0,0.0007]
[1720811306167,2.65328535,58372.0,58371.0,0.0007]
[1720811306610,2.12728171,58372.0,58371.0,0.0007]
[1720811307517,2.65328535,58372.0,58371.0,0.0007]
[1720811307756,2.97808535,58372.0,58371.0,0.0007]
[1720811307972,1.199593,58353.0,58352.0,0.009108]
[1720811308195,1.28911793,58353.0,58352.0,0.009108]
[1720811308424,1.23796201,58353.0,58352.0,0.009108]
[1720811308651,1.23855442,58353.0,58352.0,0.155208]
[1720811308875,1.26392393,58353.0,58352.0,0.155208]
[1720811309092,1.23855175,58353.0,58352.0,0.009108]
[1720811309734,1.23955175,58353.0,58352.0,0.009108]
[1720811311106,1.23845175,58353.0,58352.0,0.009108]
[1720811311565,1.23945175,58353.0,58352.0,0.009108]
[1720811311823,1.45945175,58353.0,58352.0,0.009108]
[1720811312070,1.419493,58353.0,58352.0,0.009108]
[1720811312308,1.51063538,58353.0,58352.0,0.009108]
[1720811312628,1.85337638,58353.0,58352.0,0.009108]
[1720811312746,1.85237638,58353.0,58352.0,0.009108]
[1720811313179,1.73237638,58353.0,58352.0,0.009108]
[1720811313414,1.80122645,58353.0,58352.0,0.009108]
[1720811313885,1.85237638,58353.0,58352.0,0.009108]
[1720811314116,1.80122645,58353.0,58352.0,0.009108]
[1720811314590,2.04784732,58353.0,58352.0,0.009108]
[1720811314820,2.04784732,58353.0,58352.0,0.010108]
[1720811315049,1.97112262,58353.0,58352.0,0.010108]
[1720811315294,2.04784732,58353.0,58352.0,0.009108]
[1720811315528,2.04729261,58353.0,58352.0,0.009208]
[1720811315779,2.04729261,58353.0,58352.0,0.010208]
[1720811316041,1.93213017,58353.0,58352.0,0.010208]
[1720811316284,2.04727608,58353.0,58352.0,0.010208]
[1720811316522,1.80069509,58353.0,58352.0,0.010208]
[1720811316756,1.8518095,58353.0,58352.0,0.010208]
[1720811317213,1.80069509,58353.0,58352.0,0.010208]
[1720811317444,2.22012091,58353.0,58352.0,0.010208]
[1720811317786,2.39035831,58353.0,58352.0,0.010208]
[1720811318039,2.31367349,58353.0,58352.0,0.010208]
[1720811318239,2.31367349,58353.0,58352.0,0.009208]
[1720811318446,2.39051289,58353.0,58352.0,0.010208]
[1720811318715,2.04697446,58353.0,58352.0,0.010208]
[1720811319126,1.97028551,58353.0,58352.0,0.010208]
[1720811319351,1.73117318,58353.0,58352.0,0.010208]
[1720811319485,1.68087663,58353.0,58352.0,0.02683436]
[1720811319697,1.68087663,58353.0,58352.0,0.010208]
[1720811320567,1.6910753,58353.0,58352.0,0.010208]
[1720811320794,1.6910753,58353.0,58352.0,0.02683436]
[1720811321028,1.6910753,58353.0,58352.0,0.010208]
[1720811321261,1.6910753,58353.0,58352.0,0.02683436]
[1720811321907,1.6910753,58353.0,58352.0,0.010208]
[1720811322147,0.11019867,58353.0,58352.0,0.09253436]
[1720811322402,0.34272,58357.0,58354.0,0.01662636]
[1720811322403,0.171366,58355.0,58354.0,0.01662636]
[1720811322634,0.514095,58355.0,58354.0,0.01662636]
[1720811323098,0.514095,58355.0,58354.0,0.02933537]
[1720811323778,0.856824,58355.0,58354.0,0.02933537]
[1720811323996,0.89513458,58355.0,58354.0,0.02933537]
[1720811324238,0.89513458,58355.0,58354.0,0.01662636]
[1720811324697,0.89513458,58355.0,58354.0,0.02833537]
[1720811325374,0.89613458,58355.0,58354.0,0.03033537]
[1720811325618,0.857824,58355.0,58354.0,0.03033537]
[1720811325862,0.89619756,58355.0,58354.0,0.03033537]
[1720811326099,0.89596708,58355.0,58354.0,0.03033537]
[1720811327781,0.89596708,58355.0,58354.0,0.01762636]
[1720811328291,0.89601568,58355.0,58354.0,0.01762636]
[1720811328516,1.03369355,58355.0,58354.0,0.01762636]
[1720811328933,1.03374826,58355.0,58354.0,0.01762636]
[1720811329151,0.89607039,58355.0,58354.0,0.01762636]
[1720811330534,1.31560686,58355.0,58354.0,0.002]
[1720811330798,1.23879939,58355.0,58354.0,0.002]
[1720811331014,1.51137975,58355.0,58354.0,0.01762636]
[1720811331227,1.34114235,58355.0,58354.0,0.01762636]
[1720811331445,1.23779939,58355.0,58354.0,0.01562636]
[1720811331660,1.23779939,58355.0,58354.0,0.01662636]
[1720811332120,1.23779939,58355.0,58354.0,0.01562636]
[1720811332340,1.36672498,58355.0,58354.0,0.01562636]
[1720811332547,1.36672498,58355.0,58352.0,0.02483436]
[1720811332548,1.199593,58353.0,58352.0,0.02483436]
[1720811332758,1.23869131,58353.0,58352.0,0.02483436]
[1720811333239,1.36682199,58353.0,58352.0,0.02483436]
[1720811333452,1.23869131,58353.0,58352.0,0.02483436]
[1720811333669,1.36686016,58353.0,58352.0,0.02483436]
[1720811333887,1.36685934,58353.0,58352.0,0.02483436]
[1720811334073,1.52158094,58353.0,58352.0,0.02483436]
[1720811334506,1.39341291,58353.0,58352.0,0.02483436]
[1720811335159,1.23869131,58353.0,58352.0,0.02483436]
[1720811335385,1.23969131,58353.0,58352.0,0.02783436]
[1720811335618,1.200593,58353.0,58352.0,0.02783436]
[1720811335856,1.23992611,58353.0,58352.0,0.02783436]
[1720811336085,1.200593,58353.0,58352.0,0.02783436]
[1720811336323,0.04033296,58353.0,58352.0,0.17053436]
[1720811336561,0.04033296,58353.0,58352.0,0.89880215]
[1720811336791,0.04133296,58353.0,58352.0,1.60001334]
[1720811337012,0.04133296,58353.0,58352.0,1.51489899]
[1720811337224,0.002,58353.0,58352.0,1.51489899]
[1720811337461,0.07696661,58355.0,58353.0,0.13562636]
[1720811337685,0.07696661,58355.0,58354.0,0.01462636]
[1720811337933,0.07696661,58355.0,58354.0,0.54143737]
[1720811337934,0.11624281,58355.0,58354.0,0.54143737]
[1720811338209,0.0392762,58355.0,58354.0,0.68823737]
[1720811338438,0.0392762,58355.0,58354.0,0.17413537]
[1720811338666,0.00406353,58355.0,58354.0,0.17413537]
[1720811338889,0.04347911,58355.0,58354.0,0.17413537]
[1720811339107,0.04041558,58355.0,58354.0,0.17413537]
[1720811340014,0.03941558,58355.0,58354.0,0.17413537]
[1720811340467,1.00225676,58355.0,58354.0,0.17813537]
[1720811340734,0.89723758,58355.0,58354.0,0.16542636]
[1720811341218,1.23996658,58355.0,58354.0,0.01670901]
[1720811341476,1.45896658,58355.0,58354.0,0.01270901]
[1720811341730,1.199593,58353.0,58352.0,0.009208]
[1720811341984,1.199593,58353.0,58352.0,0.02383436]
[1720811341985,1.39302851,58353.0,58352.0,0.02383436]
[1720811342963,1.23900858,58353.0,58352.0,0.02383436]
[1720811343200,1.39304278,58353.0,58352.0,0.02383436]